bitfinex/quotes_ETHUSD_20240604
["timestamp","ask_amount","ask_price","bid_price","bid_amount"]
[1717503139336,5.645678,3764.0,3762.7,3.03838678]
[1717503139634,5.645678,3764.0,3763.0,1.936]
[1717503139635,3.57441223,3763.9,3763.0,1.936]
[1717503139838,0.57441223,3763.8,3763.0,1.936]
[1717503139988,2.65724,3763.3,3763.0,1.936]
[1717503140499,2.65738,3763.1,3763.0,1.936]
[1717503146456,2.65738,3763.1,3763.0,2.07630201]
[1717503154091,2.65738,3763.1,3763.0,0.94530201]
[1717503154650,2.65717,3763.4,3763.0,0.94530201]
[1717503154849,0.75,3763.2,3763.0,0.14030201]
[1717503155196,2.65717,3763.4,3763.1,0.805]
[1717503155361,2.65717,3763.4,3763.3,0.805]
[1717503155572,3.0,3763.4,3762.7,1.38557645]
[1717503155878,5.02171,3763.2,3763.1,0.805]
[1717503156042,8.59633006,3763.2,3763.1,0.805]
[1717503157886,2.65778,3762.6,3762.5,1.934]
[1717503158288,3.40778,3762.6,3762.5,1.934]
[1717503162396,3.40778,3762.6,3762.5,2.07508272]
[1717503163753,0.75,3762.6,3762.5,2.28259099]
[1717503163948,2.65751,3763.0,3762.5,4.57059099]
[1717503164208,2.65751,3763.0,3762.9,1.934]
[1717503164492,6.40751,3763.0,3762.9,1.934]
[1717503164789,6.98205842,3763.0,3762.9,1.934]
[1717503167501,6.98211464,3763.0,3762.9,1.934]
[1717503168200,6.98210559,3763.0,3762.9,1.934]
[1717503174235,2.65776,3762.6,3762.5,1.934]
[1717503174424,3.23235559,3762.6,3762.5,1.934]
[1717503174797,3.98235559,3762.6,3762.5,2.07009022]
[1717503175806,3.40776,3762.6,3762.5,2.07009022]
[1717503176007,3.98239538,3762.6,3762.5,2.07009022]
[1717503177996,3.98239538,3762.6,3762.5,0.94209022]
[1717503180038,3.40776,3762.6,3762.5,0.94209022]
[1717503180210,3.98238007,3762.6,3762.5,0.94209022]
[1717503180597,1.32462007,3762.6,3762.5,0.94209022]
[1717503180844,0.75,3762.6,3762.5,0.94209022]
[1717503181000,0.57462007,3762.8,3762.5,1.27292924]
[1717503181217,0.57462007,3762.8,3762.7,0.806]
[1717503181804,0.57462007,3762.8,3762.7,0.94250816]
[1717503182003,1.35948032,3766.0,3762.7,0.94250816]
[1717503182004,0.57462007,3762.9,3762.7,3.74150816]
[1717503182200,0.57453717,3763.6,3763.0,2.65742]
[1717503182400,0.75,3763.4,3763.1,0.78715588]
[1717503182651,7.32,3763.7,3763.3,0.806]
[1717503182817,7.32,3763.7,3763.2,2.65728]
[1717503183012,7.32,3763.7,3763.6,0.806]
[1717503183202,7.32,3763.7,3763.6,3.1343]
[1717503183413,7.32,3763.7,3763.6,3.46132469]
[1717503183747,7.32,3763.7,3763.6,3.59727161]
[1717503186057,0.75,3764.3,3763.6,3.59727161]
[1717503186210,0.75,3764.3,3764.2,0.806]
[1717503186407,3.0,3764.6,3764.2,0.806]
[1717503186610,3.0,3764.8,3764.5,0.806]
[1717503186911,3.0,3764.8,3763.7,2.65692]
[1717503186912,0.75,3764.4,3763.7,2.65692]
[1717503187110,0.75,3764.4,3764.3,0.806]
[1717503187745,0.75,3764.4,3764.3,0.94194692]
[1717503189176,3.0,3764.8,3764.3,0.94194692]
[1717503189337,3.0,3764.8,3764.7,0.806]
[1717503189533,3.75,3764.8,3764.7,0.806]
[1717503189979,3.75,3764.8,3764.7,0.94125875]
[1717503190153,3.75,3764.8,3764.7,0.13525875]
[1717503190475,3.75,3764.8,3764.7,0.806]
[1717503190779,3.75,3764.8,3764.7,0.94125875]
[1717503199033,2.65643,3764.5,3763.3,2.3482]
[1717503199321,2.65643,3764.5,3764.4,0.806]
[1717503200308,6.823113,3764.8,3764.4,0.806]
[1717503200309,3.75,3764.8,3764.4,0.806]
[1717503200622,3.75,3764.8,3764.6,0.806]
[1717503201167,3.75,3764.8,3764.7,0.13542253]
[1717503201382,3.75,3764.8,3764.6,0.806]
[1717503201588,3.75,3764.8,3764.7,0.13542253]
[1717503201972,3.75,3764.8,3764.6,0.806]
[1717503202430,0.75,3764.8,3764.7,0.13542253]
[1717503204233,0.75,3764.8,3764.7,0.806]
[1717503204444,0.75,3764.8,3764.7,0.94142253]
[1717503209307,1.32430757,3764.8,3764.7,0.94142253]
[1717503210427,0.75,3764.8,3764.7,0.94142253]
[1717503211403,1.32431667,3764.8,3764.7,0.94142253]
[1717503214155,1.32431667,3764.8,3764.7,0.806]
[1717503214457,1.95537434,3764.8,3764.7,0.806]
[1717503215154,2.65643,3764.5,3763.6,9.5721]
[1717503215296,2.65643,3764.5,3764.4,0.806]
[1717503215502,3.23078395,3764.5,3764.4,0.806]
[1717503217655,3.23076746,3764.5,3764.4,0.806]
[1717503218817,3.23076746,3764.5,3764.4,0.94123007]
[1717503219029,2.65643,3764.5,3764.4,0.94123007]
[1717503220931,3.23073946,3764.5,3764.4,0.94123007]
[1717503223567,3.23073946,3764.5,3764.4,0.13523007]
[1717503223773,3.23073946,3764.5,3764.4,0.94123007]
[1717503223774,9.11271341,3764.5,3764.4,0.94123007]
[1717503223976,9.11271341,3764.5,3764.4,0.806]
[1717503225065,2.65665,3764.2,3763.3,7.32]
[1717503225260,2.65665,3764.2,3763.2,2.4977]
[1717503225261,2.65676,3764.0,3763.4,2.44391011]
[1717503225463,2.65676,3764.0,3763.9,0.806]
[1717503225464,3.40676,3764.0,3763.9,0.806]
[1717503225649,3.98118418,3764.0,3763.9,0.806]
[1717503226574,3.98118029,3764.0,3763.9,0.806]
[1717503227335,2.65676,3764.0,3763.9,0.806]
[1717503228082,2.65676,3764.0,3763.9,0.94107378]
[1717503247000,2.65653,3764.3,3763.9,0.94107378]
[1717503247370,2.65653,3764.3,3764.2,0.806]
[1717503247523,3.40653,3764.3,3764.2,0.806]
[1717503247679,3.40653,3764.3,3764.2,0.94131126]
[1717503248516,3.98086806,3764.3,3764.2,0.94131126]
[1717503249599,3.98086806,3764.3,3764.2,0.13531126]
[1717503249786,3.98086806,3764.3,3764.2,0.94131126]
[1717503249988,3.98086806,3764.3,3764.2,0.806]
[1717503250186,3.98086806,3764.3,3764.2,0.94121299]
[1717503252296,7.07355487,3764.3,3764.2,0.94121299]
[1717503252522,10.07355487,3764.3,3764.2,0.94121299]
[1717503252909,10.07355487,3764.3,3764.2,0.806]
[1717503253713,2.65687,3763.9,3763.3,1.3853748]
[1717503254053,2.65687,3763.9,3763.8,0.806]
[1717503254255,3.23129595,3763.9,3763.4,0.13521299]
[1717503254468,2.65687,3763.9,3763.8,0.806]
[1717503254611,3.23131843,3763.9,3763.8,0.806]
[1717503255032,3.98131843,3763.9,3763.8,0.94121299]
[1717503255461,3.98131843,3763.9,3763.8,0.806]
[1717503255658,2.65704,3763.6,3763.1,3.82705385]
[1717503255827,2.65704,3763.6,3763.5,0.806]
[1717503256230,2.65723,3763.4,3763.1,1.38535385]
[1717503256428,2.65723,3763.4,3763.3,0.806]
[1717503256672,3.98174842,3763.4,3763.3,0.806]
[1717503257934,2.65739,3763.1,3762.6,1.94251743]
[1717503258270,2.65739,3763.1,3763.0,0.806]
[1717503258464,3.40739,3763.1,3763.0,0.806]
[1717503259078,3.981965,3763.1,3763.0,0.806]
[1717503259382,3.40739,3763.1,3763.0,0.806]
[1717503260658,2.6576,3762.8,3762.2,3.82723065]
[1717503260841,2.6576,3762.8,3762.7,0.806]
[1717503261246,2.65781,3762.5,3761.9,2.495]
[1717503261446,2.65781,3762.5,3762.4,0.806]
[1717503261875,3.40781,3762.5,3762.4,0.93761712]
[1717503264239,3.40781,3762.5,3762.4,0.13161712]
[1717503264412,3.40781,3762.5,3762.4,0.93761712]
[1717503264605,3.40781,3762.5,3762.4,0.806]
[1717503265201,2.65802,3762.2,3761.5,7.32]
[1717503265402,2.65802,3762.2,3762.1,0.806]
[1717503265806,3.40802,3762.2,3762.1,0.806]
[1717503266028,3.40802,3762.2,3762.1,0.93780561]
[1717503267339,5.86042,3762.2,3762.1,0.93780561]
[1717503269743,9.446462,3762.2,3762.1,0.13180561]
[1717503270040,10.76772777,3762.2,3762.1,0.93780561]
[1717503270246,10.76772777,3762.2,3762.1,0.806]
[1717503273023,10.76772777,3762.2,3761.2,2.4118]
[1717503273202,2.65851,3761.6,3761.2,2.4118]
[1717503273408,2.65844,3761.6,3761.5,0.806]
[1717503273632,5.65844,3761.6,3761.5,0.806]
[1717503274069,5.65844,3761.6,3761.5,0.93840399]
[1717503274209,6.40844,3761.6,3761.5,0.93840399]
[1717503274549,6.40844,3761.6,3761.5,0.806]
[1717503274912,6.40844,3761.6,3761.5,0.93840399]
[1717503282789,6.40844,3761.6,3761.5,0.13240399]
[1717503282991,6.40844,3761.6,3761.5,0.93840399]
[1717503283288,6.40844,3761.6,3761.5,0.93860488]
[1717503290160,6.9832479,3761.6,3761.5,0.93860488]
[1717503290388,6.98324863,3761.6,3761.5,0.93860488]
[1717503290588,6.98324863,3761.6,3761.5,0.13260488]
[1717503290782,6.98324863,3761.6,3761.5,0.93860488]
[1717503290999,6.98324863,3761.6,3761.5,0.806]
[1717503291299,6.98324863,3761.6,3761.5,0.93434086]
[1717503291594,9.38994863,3761.6,3761.5,0.12834086]
[1717503291801,10.3289627,3761.6,3761.5,0.93434086]
[1717503292106,10.3289627,3761.6,3761.5,0.806]
[1717503293901,9.38996784,3761.6,3761.5,0.806]
[1717503296304,9.38996784,3761.6,3760.8,2.4001]
[1717503296507,2.65876,3761.2,3760.9,0.12834086]
[1717503296803,2.65893,3761.0,3760.5,2.2861]
[1717503297104,7.47796577,3761.6,3760.5,2.2861]
[1717503297105,2.65907,3760.8,3760.5,2.2861]
[1717503297295,2.65907,3760.8,3760.7,0.806]
[1717503297511,3.40907,3760.8,3760.7,0.806]
[1717503298872,3.98394404,3760.8,3760.7,0.806]
[1717503300714,3.40907,3760.8,3760.7,0.806]
[1717503301286,3.98394419,3760.8,3760.7,0.806]
[1717503301622,3.40907,3760.8,3760.7,0.806]
[1717503301815,3.40907,3760.8,3760.7,3.2217]
[1717503301816,0.75,3760.8,3760.7,3.2217]
[1717503301973,3.0,3761.2,3760.7,3.54387]
[1717503302172,1.711,3761.7,3761.2,2.3802]
[1717503302614,0.57479929,3761.8,3761.6,0.806]
[1717503302782,0.57479929,3762.2,3761.6,0.806]
[1717503302984,0.75,3762.0,3761.3,2.65865]
[1717503303224,0.75,3762.0,3761.9,0.806]
[1717503303430,3.40819,3762.0,3761.4,0.503885]
[1717503303719,2.65832,3761.8,3761.2,2.3802]
[1717503303936,2.65832,3761.8,3761.7,0.806]
[1717503304079,6.23306836,3761.8,3761.7,0.806]
[1717503304718,6.23305953,3761.8,3761.7,0.806]
[1717503305267,5.65832,3761.8,3761.7,0.806]
[1717503305470,6.23305904,3761.8,3761.7,0.806]
[1717503306321,5.65832,3761.8,3761.7,0.806]
[1717503306525,5.65832,3761.8,3761.7,0.12853306]
[1717503306820,5.65832,3761.8,3761.7,0.806]
[1717503306982,6.23308793,3761.8,3761.7,0.806]
[1717503307184,2.65855,3761.5,3760.8,2.3642]
[1717503307384,2.65855,3761.5,3761.4,0.806]
[1717503307943,3.40855,3761.5,3761.4,0.9346598]
[1717503308218,0.75,3761.5,3761.4,0.9346598]
[1717503308425,3.0,3762.6,3761.5,2.2516]
[1717503308626,0.75,3762.0,3761.5,2.2516]
[1717503308787,0.75,3762.0,3761.9,0.806]
[1717503309844,4.32471688,3762.0,3761.9,0.806]
[1717503311521,4.32476408,3762.0,3761.9,0.806]
[1717503312099,6.98291421,3762.0,3761.9,0.806]
[1717503312281,7.68120563,3762.0,3761.9,0.806]
[1717503313013,2.65858,3761.5,3760.8,2.4726]
[1717503313225,2.65858,3761.5,3761.4,0.806]
[1717503313421,3.23340434,3761.5,3761.4,0.806]
[1717503313719,3.2333978,3761.5,3761.4,0.9342632]
[1717503314097,2.65858,3761.5,3761.4,0.9342632]
[1717503314313,3.23339131,3761.5,3761.4,0.9342632]
[1717503314529,3.23340217,3761.5,3761.4,0.9342632]
[1717503315293,3.55674239,3761.5,3761.4,0.1282632]
[1717503315479,3.55674239,3761.5,3761.4,0.806]
[1717503315685,3.55674239,3761.5,3761.4,0.93444719]
[1717503317304,3.55674239,3761.5,3761.4,0.806]
[1717503319038,2.65883,3761.1,3760.8,2.4726]
[1717503319259,0.89816239,3761.5,3760.5,1.38634457]
[1717503319260,2.659,3760.9,3760.5,1.38634457]
[1717503319399,2.659,3760.9,3760.8,0.806]
[1717503319746,3.409,3760.9,3760.8,0.806]
[1717503319957,3.409,3760.9,3760.4,2.4871]
[1717503320097,3.409,3760.9,3760.8,0.806]
[1717503321398,2.65913,3760.7,3760.2,7.32]
[1717503321602,2.65913,3760.7,3760.6,0.806]
[1717503326240,2.65913,3760.7,3760.6,0.93492565]
[1717503327338,2.65913,3760.7,3760.6,0.12892565]
[1717503327540,2.65913,3760.7,3760.6,0.93492565]
[1717503327745,2.65913,3760.7,3760.6,0.806]
[1717503328059,2.65913,3760.7,3760.6,0.93505244]
[1717503331649,2.65913,3760.7,3760.6,0.97325112]
[1717503335258,2.65913,3760.7,3760.6,0.16725112]
[1717503335456,6.300043,3760.7,3760.6,0.97325112]
[1717503335659,6.300043,3760.7,3760.6,0.806]
[1717503335967,6.300043,3760.7,3760.6,0.96767424]
[1717503336471,6.300043,3760.7,3760.6,0.806]
[1717503336834,6.87500494,3760.7,3760.6,0.806]
[1717503338192,6.300043,3760.7,3760.6,0.806]
[1717503339983,6.87501652,3760.7,3760.6,0.806]
[1717503340388,6.23410352,3760.7,3760.6,0.806]
[1717503340688,2.65933,3760.4,3759.9,2.3369]
[1717503340861,2.65933,3760.4,3760.3,0.806]
[1717503342561,2.65933,3760.4,3759.9,2.3369]
[1717503342562,2.65933,3760.4,3759.6,2.4701]
[1717503342764,2.65933,3760.4,3760.3,0.806]
[1717503344558,2.65933,3760.4,3759.6,2.4701]
[1717503344768,2.65933,3760.4,3760.3,0.806]
[1717503345096,2.65968,3759.9,3759.4,2.24116344]
[1717503345455,3.0,3759.8,3759.5,0.15962991]
[1717503345669,3.75,3759.8,3759.7,0.806]
[1717503346492,2.6598,3759.7,3759.4,2.24116344]
[1717503346666,2.6598,3759.7,3759.6,0.806]
[1717503347079,2.6598,3759.7,3759.4,2.24116344]
[1717503347080,7.62204577,3759.7,3759.4,2.24116344]
[1717503347299,4.62204577,3759.7,3759.6,0.806]
[1717503347451,7.62204577,3759.7,3759.6,0.806]
[1717503347648,7.62204577,3759.7,3759.4,2.24116344]
[1717503347887,2.65992,3759.5,3759.4,2.24116344]
[1717503348156,2.65992,3759.5,3759.4,3.04716344]
[1717503348470,2.65992,3759.5,3759.4,3.20679335]
[1717503348471,5.65992,3759.5,3759.4,3.20679335]
[1717503348667,5.65992,3759.5,3759.4,3.04716344]
[1717503348909,7.81840235,3759.5,3759.4,3.20679335]
[1717503350401,7.81840235,3759.5,3759.4,2.40079335]
[1717503350586,7.81840235,3759.5,3759.4,3.20679335]
[1717503352028,8.39359172,3759.5,3759.4,3.20679335]
[1717503352516,8.39359179,3759.5,3759.4,3.04716344]
[1717503353098,7.81840235,3759.5,3759.4,3.04716344]
[1717503353514,7.81840235,3759.5,3759.4,2.24116344]
[1717503353838,7.81840235,3759.5,3759.4,3.04716344]
[1717503354205,7.81840235,3759.5,3759.4,2.24116344]
[1717503354411,7.81840235,3759.5,3759.4,3.04716344]
[1717503355333,7.81840235,3759.5,3759.4,2.24116344]
[1717503355534,6.49713658,3759.5,3759.4,3.04716344]
[1717503356835,7.81840235,3759.5,3759.4,2.24116344]
[1717503357223,8.39361233,3759.5,3759.4,2.24116344]
[1717503358155,11.05353233,3759.5,3759.4,2.24116344]
[1717503358311,13.46892235,3759.5,3759.4,2.24116344]
[1717503360345,7.81840235,3759.5,3759.4,3.04716344]
[1717503360493,5.65992,3759.5,3759.4,3.04716344]
[1717503360698,5.65992,3759.5,3759.4,3.20794325]
[1717503362245,6.98118577,3759.5,3759.4,2.40194325]
[1717503362400,7.99973435,3759.5,3759.4,2.40194325]
[1717503362605,7.99973435,3759.5,3759.4,2.24116344]
[1717503363019,8.57493408,3759.5,3759.4,3.04716344]
[1717503363305,7.99973435,3759.5,3759.4,2.24116344]
[1717503363534,7.99973435,3759.5,3759.4,3.04716344]
[1717503364014,7.99973435,3759.5,3759.4,2.24116344]
[1717503364222,7.99973435,3759.5,3759.4,2.40194325]
[1717503364927,8.54973435,3759.5,3759.4,2.40194325]
[1717503367057,5.65992,3759.5,3759.4,2.40194325]
[1717503367262,6.23510136,3759.5,3759.4,2.40194325]
[1717503367463,5.65992,3759.5,3759.4,2.40194325]
[1717503367814,2.65992,3759.5,3759.4,2.40194325]
[1717503373530,3.98118577,3759.5,3759.4,2.40194325]
[1717503373794,7.68495435,3759.5,3759.4,2.24116344]
[1717503373935,8.260128,3759.5,3759.4,2.24116344]
[1717503374141,8.260128,3759.5,3759.4,2.3964497]
[1717503375190,8.26011573,3759.5,3759.4,2.3964497]
[1717503375679,8.26012241,3759.5,3759.4,2.3964497]
[1717503376884,6.23508806,3759.5,3759.4,2.3964497]
[1717503377066,3.40972,3759.8,3759.4,2.3964497]
[1717503377389,2.65985,3759.6,3759.5,1.938]
[1717503377544,3.40985,3759.6,3759.5,1.938]
[1717503377875,6.98493486,3759.6,3759.5,2.09324563]
[1717503378184,8.30620063,3759.6,3759.5,2.09324563]
[1717503378539,8.30620063,3759.6,3759.5,0.15524563]
[1717503380144,9.13682069,3759.6,3759.5,0.15524563]
[1717503381350,8.30620063,3759.6,3759.5,0.15524563]
[1717503384043,8.30620063,3759.6,3759.5,0.807]
[1717503387194,8.30620063,3759.6,3759.4,2.24116344]
[1717503387394,3.0,3759.5,3759.4,2.24116344]
[1717503387600,3.57508486,3759.5,3759.4,3.04816344]
[1717503388189,5.72697069,3759.5,3759.4,2.24116344]
[1717503388385,5.72697069,3759.5,3759.4,3.04816344]
[1717503396639,8.15307069,3759.5,3759.4,2.24116344]
[1717503396837,8.70307069,3759.5,3759.4,2.24116344]
[1717503397637,12.03992069,3759.5,3759.4,2.24116344]
[1717503399621,8.70307069,3759.5,3759.4,2.24116344]
[1717503399806,31.04657769,3759.5,3759.4,2.24116344]
[1717503399976,30.80900569,3759.5,3759.4,2.24116344]
[1717503400176,30.80900569,3759.5,3758.0,2.371]
[1717503400177,2.65030545,3759.4,3758.0,2.371]
[1717503400429,2.65030545,3759.4,3757.4,0.83533018]
[1717503400430,2.66091,3758.1,3757.7,2.2844]
[1717503400726,2.66091,3758.1,3757.8,0.15061215]
[1717503400884,2.66091,3758.1,3758.0,0.807]
[1717503401079,6.41091,3758.1,3758.0,0.807]
[1717503401593,6.41091,3758.1,3758.0,0.95761215]
[1717503403520,6.41091,3758.1,3758.0,0.807]
[1717503404028,6.41091,3758.1,3757.7,2.2844]
[1717503404325,6.41091,3758.1,3758.0,0.807]
[1717503405005,6.41091,3758.1,3758.0,0.95761215]
[1717503405820,6.41091,3758.1,3758.0,0.15061215]
[1717503405995,6.41091,3758.1,3758.0,0.95761215]
[1717503406192,6.41091,3758.1,3758.0,0.807]
[1717503406518,6.41091,3758.1,3758.0,0.95761215]
[1717503406730,6.41091,3758.1,3758.0,3.35031215]
[1717503408127,6.41091,3758.1,3758.0,0.15061215]
[1717503408331,6.41091,3758.1,3758.0,0.95761215]
[1717503408727,6.41091,3758.1,3758.0,0.15061215]
[1717503408926,6.41091,3758.1,3758.0,0.95761215]
[1717503409135,6.41091,3758.1,3757.7,2.4442]
[1717503409316,6.41091,3758.1,3757.2,2.66153]
[1717503409317,6.41091,3758.1,3758.0,0.15096885]
[1717503409499,6.41091,3758.1,3758.0,0.807]
[1717503409841,6.41091,3758.1,3758.0,0.95796885]
[1717503410353,8.37326677,3758.1,3758.0,0.95796885]
[1717503411540,8.37326677,3758.1,3758.0,0.15096885]
[1717503411838,8.37326677,3758.1,3758.0,0.95796885]
[1717503412010,8.37326677,3758.1,3758.0,0.807]
[1717503412213,2.66114,3757.8,3757.4,2.4442]
[1717503412550,3.0,3757.7,3757.4,2.4442]
[1717503412837,3.0,3757.7,3757.6,0.807]
[1717503415113,3.0,3757.7,3757.6,0.95796885]
[1717503415465,3.0,3757.7,3757.6,0.15096885]
[1717503415608,3.0,3757.7,3757.6,0.95796885]
[1717503415815,3.0,3757.7,3757.6,0.807]
[1717503416052,3.0,3757.7,3757.6,0.95796885]
[1717503417752,2.66091,3758.2,3757.7,2.3415]
[1717503417935,3.0,3758.1,3757.7,2.67144688]
[1717503418272,3.0,3758.1,3758.0,0.807]
[1717503418582,3.75,3758.1,3758.0,0.807]
[1717503418864,3.75,3758.1,3758.0,0.95798912]
[1717503419960,8.13345677,3758.1,3758.0,0.15098912]
[1717503420156,8.13345677,3758.1,3758.0,0.95798912]
[1717503420396,8.13345677,3758.1,3758.0,0.807]
[1717503420525,8.13345677,3758.1,3758.0,0.95308067]
[1717503420727,8.70884712,3758.1,3758.0,0.95308067]
[1717503420927,6.28774712,3758.1,3758.0,0.95308067]
[1717503421171,6.28774712,3758.1,3758.0,0.14608067]
[1717503421375,6.28774712,3758.1,3758.0,0.95308067]
[1717503421576,6.28774712,3758.1,3757.3,2.3076]
[1717503421731,1.89665612,3758.0,3756.8,2.2669]
[1717503421931,1.89665612,3758.0,3757.9,0.807]
[1717503422380,1.89665612,3758.0,3756.8,2.2669]
[1717503422528,1.89665612,3758.0,3757.9,0.807]
[1717503422727,4.31055612,3758.0,3757.9,0.807]
[1717503423040,7.31055612,3758.0,3757.9,0.807]
[1717503423253,9.01290283,3758.0,3757.9,0.807]
[1717503423467,9.01290283,3758.0,3756.8,2.2669]
[1717503423630,3.57539035,3757.9,3756.8,2.2669]
[1717503423835,0.75,3757.3,3756.8,2.2669]
[1717503424181,3.41148,3757.3,3757.2,0.807]
[1717503426348,2.66127,3757.6,3757.2,0.807]
[1717503426528,3.0,3757.5,3757.1,2.2616]
[1717503426863,3.0,3757.5,3757.4,0.807]
[1717503427020,3.75,3757.5,3757.4,0.807]
[1717503427443,3.0,3757.5,3757.4,0.807]
[1717503428976,3.0,3757.5,3757.1,2.2616]
[1717503429155,3.0,3757.5,3757.4,0.807]
[1717503429630,3.0,3757.5,3757.1,2.2616]
[1717503429831,3.0,3757.5,3757.4,0.807]
[1717503430033,3.75,3757.5,3757.4,0.807]
[1717503430234,5.63739277,3757.5,3756.7,2.4118]
[1717503430432,1.37141772,3757.4,3756.7,2.4118]
[1717503430673,7.03282772,3757.4,3757.3,0.807]
[1717503430879,3.98267577,3757.4,3757.3,0.807]
[1717503431087,8.34355605,3757.4,3757.3,0.807]
[1717503431295,2.66182,3756.9,3756.3,2.455]
[1717503431591,2.66182,3756.9,3756.8,0.807]
[1717503431971,2.66182,3756.9,3756.7,1.94]
[1717503432284,2.66182,3756.9,3756.8,0.13666884]
[1717503432700,0.75,3756.8,3756.7,1.94]
[1717503433583,0.75,3756.8,3756.3,2.455]
[1717503433745,0.75,3756.8,3756.7,1.94]
[1717503439196,2.66192,3756.7,3756.2,2.25536121]
[1717503439426,2.66192,3756.7,3756.5,1.94]
[1717503447221,5.66192,3756.7,3756.6,0.13700437]
[1717503447422,7.62437777,3756.7,3756.6,0.13700437]
[1717503447722,7.62437777,3756.7,3756.2,2.25536121]
[1717503447931,2.66213,3756.4,3756.3,0.13700437]
[1717503448280,2.66213,3756.4,3756.2,2.25536121]
[1717503448589,2.66213,3756.4,3756.3,0.13700437]
[1717503449005,2.66213,3756.4,3756.2,2.25536121]
[1717503449174,2.66213,3756.4,3756.3,0.13700437]
[1717503449593,2.66213,3756.4,3756.2,2.25536121]
[1717503449793,2.66213,3756.4,3756.3,0.13700437]
[1717503450223,2.66213,3756.4,3756.2,2.25536121]
[1717503450563,2.66213,3756.4,3756.3,0.13700437]
[1717503450986,2.66213,3756.4,3756.2,2.25536121]
[1717503451323,2.66213,3756.4,3756.3,0.13700437]
[1717503451519,2.66213,3756.4,3756.2,2.25536121]
[1717503451723,2.66213,3756.4,3756.3,0.13700437]
[1717503451882,2.66213,3756.4,3756.2,2.25536121]
[1717503452232,2.66213,3756.4,3756.3,0.13700437]
[1717503452529,2.66213,3756.4,3756.2,2.25536121]
[1717503452723,2.66213,3756.4,3756.3,0.13700437]
[1717503452880,2.66213,3756.4,3756.2,2.25536121]
[1717503453085,2.66213,3756.4,3756.3,0.13700437]
[1717503453285,2.66213,3756.4,3756.2,2.25536121]
[1717503453509,2.66213,3756.4,3756.3,0.13700437]
[1717503453720,2.66213,3756.4,3756.2,2.25536121]
[1717503453883,2.66213,3756.4,3756.3,0.94600437]
[1717503459890,2.66213,3756.4,3756.3,0.13700437]
[1717503460095,2.66213,3756.4,3756.3,0.809]
[1717503460293,2.66213,3756.4,3756.3,0.94602457]
[1717503463443,2.66213,3756.4,3756.3,0.13702457]
[1717503463607,2.66213,3756.4,3756.3,0.94602457]
[1717503463807,2.66213,3756.4,3756.3,0.809]
[1717503464020,2.66213,3756.4,3756.3,0.94602457]
[1717503466008,2.66213,3756.4,3756.3,0.13702457]
[1717503466330,2.66213,3756.4,3756.3,0.809]
[1717503466533,2.66213,3756.4,3756.3,0.94602457]
[1717503480567,6.36046958,3756.4,3756.3,0.13702457]
[1717503480788,6.36046958,3756.4,3756.3,0.809]
[1717503480994,6.36046958,3756.4,3756.3,0.94604884]
[1717503481190,7.68173535,3756.4,3756.3,0.13704884]
[1717503481392,10.68893535,3756.4,3756.2,3.06436121]
[1717503481693,6.2063583,3756.3,3756.2,3.06436121]
[1717503482792,6.2063583,3756.3,3756.2,2.25536121]
[1717503482982,6.2063583,3756.3,3756.2,3.06436121]
[1717503487798,4.33509253,3756.3,3756.2,3.06436121]
[1717503488106,3.0,3756.3,3756.2,3.06436121]
[1717503488310,3.0,3756.3,3756.2,3.20141005]
[1717503489515,2.4428,3757.1,3756.3,2.4982]
[1717503489516,2.66191,3756.7,3756.3,2.4982]
[1717503489808,2.66191,3756.7,3756.6,0.809]
[1717503490019,3.41191,3756.7,3756.6,0.809]
[1717503490364,3.41191,3756.7,3756.6,0.94648546]
[1717503490561,6.41191,3756.7,3756.6,0.94648546]
[1717503491009,6.41191,3756.7,3756.6,0.13748546]
[1717503491173,6.41191,3756.7,3756.6,0.809]
[1717503491372,6.41191,3756.7,3756.6,0.94648546]
[1717503492671,3.75,3756.7,3756.6,0.94648546]
[1717503492906,0.75,3756.7,3756.6,3.65995401]
[1717503493232,3.0,3757.0,3756.7,2.4986]
[1717503493396,3.0,3757.4,3756.9,0.809]
[1717503493708,3.0,3757.4,3757.1,0.809]
[1717503493912,0.75,3757.2,3757.1,0.809]
[1717503494298,0.75,3757.2,3757.1,0.94629946]
[1717503495471,0.75,3757.2,3757.1,3.20389946]
[1717503495716,0.75,3757.2,3757.1,3.52428941]
[1717503495932,5.31,3757.7,3757.1,3.52428941]
[1717503496153,5.31,3757.7,3757.6,0.809]
[1717503496536,6.06,3757.7,3757.6,0.809]
[1717503496859,6.06,3757.7,3757.6,0.94629946]
[1717503498105,0.75,3757.7,3757.6,3.35599946]
[1717503498292,2.66077,3758.4,3757.6,3.95774441]
[1717503498492,0.75,3758.1,3757.6,2.54699946]
[1717503498712,0.75,3758.1,3758.0,0.809]
[1717503499434,0.75,3758.1,3758.0,0.13729946]
[1717503499587,0.75,3758.1,3758.0,0.809]
[1717503499787,0.75,3758.1,3758.0,0.94565273]
[1717503501510,2.66046,3758.8,3758.0,3.41505273]
[1717503501731,3.98172577,3758.8,3758.7,0.809]
[1717503502033,0.75,3758.8,3758.7,0.94510714]
[1717503502200,0.75,3758.8,3758.7,3.24460714]
[1717503502401,2.66018,3759.2,3758.7,3.1085]
[1717503502619,0.75,3759.2,3759.1,0.809]
[1717503503021,0.75,3759.2,3759.1,0.94510714]
[1717503503394,0.75,3759.2,3759.1,0.13610714]
[1717503503597,0.75,3759.2,3759.1,0.809]
[1717503503797,0.75,3759.2,3759.1,0.94510714]
[1717503504044,0.75,3759.2,3759.1,2.07310714]
[1717503505148,3.0,3759.5,3759.1,2.07310714]
[1717503505301,0.75,3759.4,3759.1,2.07310714]
[1717503514383,2.66006,3759.3,3759.1,2.07310714]